fUST/lending_fUST_20241025
["ID","MTS","AMOUNT","RATE_DAILY","PERIOD"]
[340792989,1729834241171,-151.0,0.00013698,2]
[340792990,1729834241182,-151.0,0.00013698,2]
[340792991,1729834241193,-289.972794,0.00013698,2]
[340792992,1729834241202,-500.0,0.00013698,2]
[340792993,1729834241212,-151.0,0.00013698,2]
[340792994,1729834241221,-151.0,0.00013698,2]
[340792995,1729834241231,-151.0,0.00013698,2]
[340792996,1729834241242,-151.0,0.00013698,2]
[340792997,1729834241252,-151.0,0.00013698,2]
[340792998,1729834241262,-151.0,0.00013698,2]
[340792999,1729834241272,-151.0,0.00013698,2]
[340793000,1729834241281,-151.0,0.00013698,2]
[340793001,1729834241290,-151.0,0.00013698,2]
[340793002,1729834241299,-151.0,0.00013698,2]
[340793003,1729834241309,-151.0,0.00013698,2]
[340793004,1729834241321,-151.0,0.00013698,2]
[340793005,1729834241331,-151.0,0.00013698,2]
[340793006,1729834241342,-151.0,0.00013698,2]
[340793007,1729834241351,-225.346196,0.00013698,2]
[340793008,1729834241360,-500.0,0.00013698,2]
[340793009,1729834241369,-500.0,0.00013698,2]
[340793010,1729834241381,-500.0,0.00013698,2]
[340793011,1729834241391,-858.63,0.00013698,2]
[340793012,1729834241401,-606.28155889,0.00013698,2]
[340793013,1729834241412,-500.0,0.00013698,2]
[340793014,1729834241423,-778.63,0.00013698,2]
[340793015,1729834241433,-151.0,0.00013698,2]
[340793016,1729834241445,-237.795719,0.00013698,2]
[340793017,1729834241455,-151.0,0.00013698,2]
[340793018,1729834241465,-151.0,0.00013698,2]
[340793019,1729834241475,-151.0,0.00013698,2]
[340793020,1729834241484,-151.0,0.00013698,2]
[340793021,1729834241493,-151.0,0.00013698,2]
[340793022,1729834241503,-151.0,0.00013698,2]
[340793023,1729834241512,-151.0,0.00013698,2]
[340793024,1729834241521,-151.0,0.00013698,2]
[340793025,1729834241531,-151.0,0.00013698,2]
[340793026,1729834241541,-151.0,0.00013698,2]
[340793027,1729834241552,-500.0,0.00013698,2]
[340793028,1729834241564,-684.4,0.00013698,2]
[340793029,1729834241574,-228.15819495,0.00013698,2]
[340793030,1729834241583,-500.0,0.00013698,2]
[340793031,1729834241593,-509.28,0.00013698,2]
[340793032,1729834241602,-500.0,0.00013698,2]
[340793033,1729834241611,-151.0,0.00013698,2]
[340793034,1729834241620,-151.0,0.00013698,2]
[340793035,1729834241630,-151.34511,0.00013698,2]
[340793036,1729834241640,-500.0,0.00013698,2]
[340793037,1729834241650,-228.15819495,0.00013698,2]
[340793038,1729834241659,-500.0,0.00013698,2]
[340793039,1729834241669,-727.67,0.00013698,2]
[340793040,1729834241679,-1082.24,0.00013698,2]
[340793041,1729834241689,-151.0,0.00013698,2]
[340793042,1729834241698,-151.0,0.00013698,2]
[340793043,1729834241707,-151.0,0.00013698,2]
[340793044,1729834241720,-151.0,0.00013698,2]
[340793045,1729834241729,-646.0,0.00013698,2]
[340793046,1729834241738,-151.0,0.00013698,2]
[340793047,1729834241748,-151.0,0.00013698,2]
[340793048,1729834241758,-151.0,0.00013698,2]
[340793049,1729834241768,-230.488287,0.00013698,2]
[340793050,1729834241777,-500.0,0.00013698,2]
[340793051,1729834241789,-500.0,0.00013698,2]
[340793052,1729834241798,-591.41041058,0.00013698,2]
[340793053,1729834241808,-823.16,0.00013698,2]
[340793054,1729834241817,-500.0,0.00013698,2]
[340793055,1729834241826,-500.0,0.00013698,2]
[340793056,1729834241836,-166.103808,0.00013698,2]
[340793057,1729834241846,-166.103808,0.00013698,2]
[340793058,1729834241856,-166.103808,0.00013698,2]
[340793059,1729834241867,-166.103808,0.00013698,2]
[340793060,1729834241878,-166.103808,0.00013698,2]
[340793061,1729834241889,-166.103808,0.00013698,2]
[340793062,1729834241900,-166.103808,0.00013698,2]
[340793063,1729834241910,-166.103808,0.00013698,2]
[340793064,1729834241919,-166.103808,0.00013698,2]
[340793065,1729834241931,-166.103808,0.00013698,2]
[340793066,1729834241940,-166.103808,0.00013698,2]
[340793067,1729834241950,-166.103808,0.00013698,2]
[340793068,1729834241959,-166.103808,0.00013698,2]
[340793069,1729834241969,-166.103808,0.00013698,2]
[340793070,1729834241979,-166.103808,0.00013698,2]
[340793071,1729834241989,-166.103808,0.00013698,2]
[340793072,1729834241998,-166.103808,0.00013698,2]
[340793073,1729834242008,-166.103808,0.00013698,2]
[340793074,1729834242018,-166.103808,0.00013698,2]
[340793075,1729834242028,-500.0,0.00013698,2]
[340793076,1729834242038,-166.103799,0.00013698,2]
[340793077,1729834242049,-1972.95,0.00013698,2]
[340793078,1729834242060,-500.0,0.00013698,2]
[340793079,1729834242070,-526.7,0.00013698,2]
[340793080,1729834242080,-1124.59,0.00013698,2]
[340793081,1729834242089,-500.0,0.00013698,2]
[340793082,1729834242098,-1247.32,0.00013698,2]
[340793083,1729834242107,-599.68,0.00013698,2]
[340793084,1729834242117,-151.0,0.00013698,2]
[340793085,1729834242126,-500.0,0.00013698,2]
[340793086,1729834242136,-500.0,0.00013698,2]
[340793087,1729834242146,-500.0,0.00013698,2]
[340793088,1729834242157,-500.0,0.00013698,2]
[340793089,1729834242166,-500.0,0.00013698,2]
[340793090,1729834242178,-500.0,0.00013698,2]
[340793091,1729834242188,-500.0,0.00013698,2]
[340793092,1729834242199,-500.0,0.00013698,2]
[340793093,1729834242209,-500.0,0.00013698,2]
[340793094,1729834242219,-500.0,0.00013698,2]
[340793095,1729834242233,-500.0,0.00013698,2]
[340793096,1729834242243,-266.46512242,0.00013698,2]
[340793097,1729834242253,-500.0,0.00013698,2]
[340793098,1729834242263,-286.22344698,0.00013698,2]
[340793099,1729834242273,-500.0,0.00013698,2]
[340793100,1729834242283,-500.0,0.00013698,2]
[340793101,1729834242294,-500.0,0.00013698,2]
[340793102,1729834242305,-500.0,0.00013698,2]
[340793103,1729834242314,-500.0,0.00013698,2]
[340793104,1729834242323,-500.0,0.00013698,2]
[340793105,1729834242332,-500.0,0.00013698,2]
[340793106,1729834242341,-500.0,0.00013698,2]
[340793107,1729834242351,-506.75686256,0.00013698,2]
[340793108,1729834242362,-500.0,0.00013698,2]
[340793109,1729834242371,-500.0,0.00013698,2]
[340793110,1729834242381,-500.0,0.00013698,2]
[340793111,1729834242390,-500.0,0.00013698,2]
[340793112,1729834242399,-500.0,0.00013698,2]
[340793113,1729834242409,-500.0,0.00013698,2]
[340793114,1729834242418,-500.0,0.00013698,2]
[340793115,1729834242427,-500.0,0.00013698,2]
[340793116,1729834242435,-500.0,0.00013698,2]
[340793117,1729834242444,-500.0,0.00013698,2]
[340793118,1729834242454,-1303.87,0.00013698,2]
[340793119,1729834242464,-690.91,0.00013698,2]
[340793120,1729834242474,-746.58,0.00013698,2]
[340793121,1729834242484,-497.79636196,0.00013698,2]
[340793122,1729834242493,-490.08403502,0.00013698,2]
[340793123,1729834242502,-193.44270171,0.00013698,2]
[340793124,1729834242512,-464.64520313,0.00013698,2]
[340793125,1729834242521,-664.18,0.00013698,2]
[340793126,1729834242530,-151.0,0.00013698,2]
[340793127,1729834242539,-151.0,0.00013698,2]
[340793128,1729834242549,-288.896661,0.00013698,2]
[340793129,1729834242558,-884.56,0.00013698,2]
[340793130,1729834242567,-500.0,0.00013698,2]
[340793131,1729834242576,-500.0,0.00013698,2]
[340793132,1729834242585,-500.0,0.00013698,2]
[340793133,1729834242594,-500.0,0.00013698,2]
[340793134,1729834242603,-500.0,0.00013698,2]
[340793135,1729834242612,-500.0,0.00013698,2]
[340793136,1729834242621,-500.0,0.00013698,2]
[340793137,1729834242631,-500.0,0.00013698,2]
[340793138,1729834242643,-500.0,0.00013698,2]
[340793139,1729834242651,-216.71187727,0.00013698,2]
[340793140,1729834242661,-500.0,0.00013698,2]
[340793141,1729834242670,-500.0,0.00013698,2]
[340793142,1729834242679,-500.0,0.00013698,2]
[340793143,1729834242689,-500.0,0.00013698,2]
[340793144,1729834242699,-600.0,0.00013698,2]
[340793145,1729834242708,-500.0,0.00013698,2]
[340793146,1729834242717,-500.0,0.00013698,2]
[340793147,1729834242727,-500.0,0.00013698,2]
[340793148,1729834242738,-500.0,0.00013698,2]
[340793149,1729834242748,-500.0,0.00013698,2]
[340793150,1729834242757,-500.0,0.00013698,2]
[340793151,1729834242767,-500.0,0.00013698,2]
[340793152,1729834242776,-500.0,0.00013698,2]
[340793153,1729834242785,-500.0,0.00013698,2]
[340793154,1729834242794,-500.0,0.00013698,2]
[340793155,1729834242804,-500.0,0.00013698,2]
[340793156,1729834242813,-500.0,0.00013698,2]
[340793157,1729834242822,-500.0,0.00013698,2]
[340793158,1729834242832,-500.0,0.00013698,2]
[340793159,1729834242841,-731.41,0.00013698,2]
[340793160,1729834242850,-500.0,0.00013698,2]
[340793161,1729834242860,-500.0,0.00013698,2]
[340793162,1729834242869,-500.0,0.00013698,2]
[340793163,1729834242879,-500.0,0.00013698,2]
[340793164,1729834242888,-500.0,0.00013698,2]
[340793165,1729834242898,-500.0,0.00013698,2]
[340793166,1729834242908,-500.0,0.00013698,2]
[340793167,1729834242917,-349.99999999,0.00013698,2]
[340793168,1729834242928,-500.0,0.00013698,2]
[340793169,1729834242938,-672.7323887,0.00013698,2]
[340793170,1729834242966,-471.5676113,0.00013698,2]
[340793171,1729834242976,-217.9323887,0.00013698,2]
[340793188,1729834246436,-2102.93533232,0.00013697,2]
[340793190,1729834246447,-282.0676113,0.00013698,2]
[340793192,1729834246457,-500.0,0.00013698,2]
[340793194,1729834246468,-165.48760707,0.00013698,2]
[340793196,1729834246478,-160.18081533,0.00013698,2]
[340793198,1729834246487,-500.0,0.00013698,2]
[340793200,1729834246498,-500.0,0.00013698,2]
[340793201,1729834246507,-500.0,0.00013698,2]
[340793203,1729834246517,-500.0,0.00013698,2]
[340793205,1729834246526,-500.0,0.00013698,2]
[340793206,1729834246535,-500.0,0.00013698,2]
[340793207,1729834246545,-500.0,0.00013698,2]
[340793208,1729834246554,-500.0,0.00013698,2]
[340793209,1729834246564,-500.0,0.00013698,2]
[340793210,1729834246573,-500.0,0.00013698,2]
[340793211,1729834246758,-125.04112344,0.00013698,2]
[340793212,1729834246771,-374.95887656,0.00013698,2]
[340793213,1729834246780,-500.0,0.00013698,2]
[340793214,1729834246789,-477.74112344,0.00013698,2]
[340793235,1729835436013,-1445.6878247,0.00012592,2]
[340793236,1729835436023,-150.123705,0.000128,2]
[340793237,1729835436033,-1099.9786278,0.0001311,2]
[340793238,1729835436042,-158.19212174,0.00013597,2]
[340793239,1729835436052,-300.0,0.00013597,2]
[340793240,1729835436062,-300.0,0.00013597,2]
[340793241,1729835436071,-158.19212174,0.00013598,2]
[340793242,1729835436080,-500.0,0.00013598,2]
[340793243,1729835436090,-999.99629782,0.00013598,2]
[340793244,1729835436101,-1277.88451293,0.000136,2]
[340793245,1729835436113,-500.0,0.000136,2]
[340793247,1729835436124,-1099.9786278,0.0001361,2]
[340793248,1729835436133,-500.0,0.00013673,2]
[340793249,1729835436143,-500.0,0.00013673,2]
[340793250,1729835436162,-500.0,0.00013673,2]
[340793251,1729835436174,-173.81125594,0.00013688,2]
[340793252,1729835436185,-177.587,0.00013688,2]
[340793253,1729835436196,-23696.1544081,0.00013688,2]
[340793254,1729835436206,-16257.28737063,0.00013688,2]
[340793321,1729835440729,-1044.8,0.00013688,2]
[340793328,1729835440792,-52422.06177174,0.00013688,2]
[340793355,1729835443913,-445.1,0.00013688,2]
[340793356,1729835443925,-16925.55887944,0.00013688,2]
[340793361,1729835446632,-919.63264178,0.00013688,2]
[340793374,1729836263137,-500.0,0.00012686,2]
[340793375,1729836285794,-391.1653172,0.00012686,2]
[340793419,1729836552745,-659.9871768,0.0001311,2]
[340793420,1729836552779,-119.62976989,0.00013588,2]
[340793421,1729836552792,-659.9871768,0.00013588,2]
[340793422,1729836552804,-4780.77892982,0.00013588,2]
[340793423,1729836552813,-659.9871768,0.0001361,2]
[340793424,1729836552823,-119.62976989,0.00013672,2]
[340793436,1729836631788,-300.0,0.00013672,2]
[340793437,1729836631799,-300.0,0.00013672,2]
[340793438,1729836631808,-502.48108735,0.00013673,2]
[340793440,1729836631818,-500.22298495,0.00013673,2]
[340793441,1729836631827,-500.0,0.00013673,2]
[340793443,1729836631837,-500.0,0.00013673,2]
[340793445,1729836631846,-500.0,0.00013673,2]
[340793446,1729836631855,-500.0,0.00013673,2]
[340793447,1729836631865,-462.5511352,0.00013673,2]
[340793448,1729836631874,-505.720814,0.00013673,2]
[340793449,1729836631883,-172.53155035,0.00013688,2]
[340793450,1729836631895,-5.05544965,0.00013688,2]
[340793451,1729836631904,-551.01969141,0.00013688,2]
[340793452,1729836631916,-13929.96355799,0.00013688,2]
[340793453,1729836631925,-23381.81708867,0.00013688,2]
[340793458,1729836637839,-4025.44601597,0.00013688,2]
[340793459,1729836637975,-6392.67197605,0.00013688,2]
[340793490,1729836639993,-254.52120144,0.00013688,2]
[340793491,1729836640005,-770.359144,0.00013688,2]
[340793492,1729836640017,-469.219991,0.00013688,2]
[340793493,1729836640028,-9629.8559995,0.00013688,2]
[340793494,1729836640072,-1220.45936198,0.00013688,2]
[340793495,1729836640083,-591.42608346,0.00013688,2]
[340793496,1729836640094,-763.35002962,0.00013688,2]
[340793497,1729836640111,-285.29888257,0.00013688,2]
[340793519,1729836642924,-440.71682219,0.00013688,2]
[340793562,1729836701752,172.51,0.00010959,2]
[340793563,1729836712275,862.58,0.00010959,2]
[340793564,1729837348694,300.0,0.00016,5]
[340793565,1729837384486,300.0,0.00016,5]
[340793566,1729837422408,300.27773857,0.00016,6]
[340793568,1729837554151,500.0,0.00022,60]
[340793616,1729837832011,-300.0,0.00012421,2]
[340793617,1729837832022,-371.33001715,0.00012422,2]
[340793630,1729837838171,-1585.33183703,0.00012422,2]
[340793631,1729837838310,-3484.78714352,0.00012422,2]
[340793646,1729837840227,-469.36421274,0.00012422,2]
[340793647,1729837840239,-671.77936835,0.00012422,2]
[340793659,1729837845883,-562.98055713,0.00012422,2]
[340793660,1729837845916,-524.68895133,0.00012422,2]
[340793661,1729837876241,782.6,0.00010959,2]
[340793663,1729838495297,865.18,0.00022,60]
[340793698,1729839032147,-300.0,0.00011809,2]
[340793699,1729839032156,-300.0,0.00011809,2]
[340793701,1729839032165,-2029.50508325,0.0001181,2]
[340793714,1729839040340,-4023.96118282,0.0001181,2]
[340793721,1729839043170,-3450.0,0.0001181,2]
[340793734,1729839043281,-3286.72687063,0.0001181,2]
[340793736,1729839043291,-160.860241,0.00011977,2]
[340793738,1729839043303,-160.860241,0.00012013,2]
[340793740,1729839043313,-160.860241,0.0001205,2]
[340793743,1729839043323,-160.860241,0.00012087,2]
[340793745,1729839043334,-160.860241,0.00012124,2]
[340793747,1729839043343,-160.860241,0.0001216,2]
[340793749,1729839043354,-160.860241,0.00012197,2]
[340793751,1729839043363,-160.860241,0.00012234,2]
[340793753,1729839043373,-160.860241,0.0001227,2]
[340793755,1729839043382,-160.860241,0.00012307,2]
[340793757,1729839043392,-160.860241,0.00012344,2]
[340793759,1729839043402,-160.860241,0.00012381,2]
[340793761,1729839043411,-160.860241,0.00012417,2]
[340793763,1729839043421,-160.860241,0.00012454,2]
[340793766,1729839043431,-160.860241,0.00012491,2]
[340793768,1729839043441,-160.860241,0.00012527,2]
[340793770,1729839043451,-160.860241,0.00012564,2]
[340793772,1729839043461,-160.860241,0.00012601,2]
[340793774,1729839043470,-153.0,0.00012877,2]
[340793776,1729839043482,-153.0,0.000129,2]
[340793778,1729839043491,-153.0,0.000129,2]
[340793780,1729839043501,-153.0,0.000129,2]
[340793782,1729839043510,-4865.34639192,0.000129,2]
[340793783,1729839043520,-420.0,0.00012966,2]
[340793784,1729839043530,-203.62991175,0.00012973,2]
[340793794,1729839046160,-296.37008825,0.00012973,2]
[340793795,1729839046170,-500.0,0.00012973,2]
[340793796,1729839046180,-170.27671392,0.0001298,2]
[340793797,1729839046190,-19479.2883593,0.0001298,2]
[340793798,1729839046202,-1989.15024096,0.0001298,2]
[340793799,1729839046212,-63307.6871677,0.0001299,2]
[340793800,1729839046223,-6464.73828312,0.0001299,2]
[340793801,1729839046233,-420.0,0.0001299,2]
[340793802,1729839046243,-711.48935104,0.00013,2]
[340793803,1729839046252,-152854.30596129,0.00013,2]
[340793863,1729840232408,-300.0,0.00011221,2]
[340793864,1729840232418,-300.0,0.00011221,2]
[340793865,1729840232428,-24134.2517853,0.00011264,2]
[340793866,1729840232437,-158.664659,0.00011667,2]
[340793867,1729840232447,-206.26350097,0.00011709,2]
[340793868,1729840232457,-158.664659,0.00011711,2]
[340793869,1729840232466,-158.664659,0.00011754,2]
[340793870,1729840232475,-158.664659,0.00011797,2]
[340793871,1729840232485,-158.664659,0.00011841,2]
[340793872,1729840232494,-158.664659,0.00011884,2]
[340793873,1729840232503,-158.664659,0.00011928,2]
[340793874,1729840232513,-158.664659,0.00011971,2]
[340793875,1729840232522,-158.664659,0.00012015,2]
[340793876,1729840232532,-158.664659,0.00012058,2]
[340793877,1729840232541,-158.664659,0.00012101,2]
[340793878,1729840232550,-158.664659,0.00012145,2]
[340793879,1729840232560,-158.664659,0.00012188,2]
[340793880,1729840232570,-158.664659,0.00012232,2]
[340793881,1729840232580,-158.664659,0.00012275,2]
[340793882,1729840232589,-420.0,0.00012327,2]
[340793883,1729840232599,-420.0,0.00012343,2]
[340793884,1729840232608,-306.0,0.00012466,2]
[340793885,1729840232617,-339.55999998,0.00012617,2]
[340793886,1729840232627,-153.0,0.0001274,2]
[340793887,1729840232637,-153.0,0.0001274,2]
[340793888,1729840232646,-153.0,0.0001274,2]
[340793889,1729840232655,-153.0,0.0001274,2]
[340793890,1729840232664,-153.0,0.0001274,2]
[340793891,1729840232674,-153.0,0.0001274,2]
[340793892,1729840232684,-13184.51205498,0.0001287,2]
[340793893,1729840232694,-182.18966527,0.0001287,2]
[340793894,1729840232703,-159.9062121,0.00012877,2]
[340793895,1729840232712,-154.9099166,0.00012877,2]
[340793896,1729840232721,-302.5509068,0.00012877,2]
[340793897,1729840232731,-153.0,0.00012877,2]
[340793898,1729840232740,-153.0,0.00012877,2]
[340793899,1729840232750,-202.67152699,0.00012877,2]
[340793900,1729840232759,-5000.0,0.000129,2]
[340793901,1729840232769,-4257.17809293,0.000129,2]
[340793902,1729840232779,-28619.0982084,0.0001297,2]
[340793903,1729840232790,-213.12323996,0.0001297,2]
[340793904,1729840232799,-500.0,0.00012973,2]
[340793905,1729840232810,-500.0,0.00012973,2]
[340793906,1729840232820,-151.0,0.0001298,2]
[340793907,1729840232831,-151.0,0.0001298,2]
[340793908,1729840232841,-1205.374384,0.0001298,2]
[340793909,1729840232850,-151.0,0.0001298,2]
[340793910,1729840232861,-1205.374384,0.0001298,2]
[340793911,1729840232871,-197.76126,0.0001298,2]
[340793912,1729840232882,-197.76126,0.0001298,2]
[340793913,1729840232891,-390.023632,0.0001298,2]
[340793914,1729840232900,-390.023632,0.0001298,2]
[340793915,1729840232909,-432.644401,0.0001298,2]
[340793916,1729840232919,-432.644401,0.0001298,2]
[340793917,1729840232928,-56011.1310409,0.0001298,2]
[340793918,1729840233155,-706.99,0.0001298,2]
[340793919,1729840233172,-337.93781919,0.0001298,2]
[340793941,1729840240533,-3192.48866919,0.0001298,2]
[340793942,1729840240545,-39918.29620072,0.0001298,2]
[340793943,1729840240555,-426.24647992,0.0001298,2]
[340793944,1729840240564,-218.987046,0.0001299,2]
[340793945,1729840240573,-151.0,0.0001299,2]
[340793946,1729840240582,-151.0,0.0001299,2]
[340793947,1729840240591,-151.258146,0.0001299,2]
[340793948,1729840240601,-151.0,0.0001299,2]
[340793949,1729840240610,-151.0,0.0001299,2]
[340793950,1729840240619,-151.0,0.0001299,2]
[340793951,1729840240629,-151.343935,0.0001299,2]
[340793952,1729840240640,-151.0,0.0001299,2]
[340793953,1729840240650,-151.0,0.0001299,2]
[340793954,1729840240659,-151.0,0.0001299,2]
[340793955,1729840240668,-151.0,0.0001299,2]
[340793956,1729840240677,-334.906856,0.0001299,2]
[340793957,1729840240686,-334.906856,0.0001299,2]
[340793958,1729840240695,-334.906856,0.0001299,2]
[340793959,1729840240705,-334.906856,0.0001299,2]
[340793960,1729840240714,-151.0,0.0001299,2]
[340793961,1729840240723,-151.0,0.0001299,2]
[340793962,1729840240733,-151.0,0.0001299,2]
[340793963,1729840240742,-303.323344,0.0001299,2]
[340793964,1729840240752,-303.323344,0.0001299,2]
[340793965,1729840240761,-151.0,0.0001299,2]
[340793966,1729840240770,-151.0,0.0001299,2]
[340793967,1729840240780,-303.323344,0.0001299,2]
[340793968,1729840240790,-303.323344,0.0001299,2]
[340793969,1729840240799,-151.0,0.0001299,2]
[340793970,1729840240808,-151.0,0.0001299,2]
[340793971,1729840240817,-151.0,0.0001299,2]
[340793972,1729840240826,-151.0,0.0001299,2]
[340793973,1729840240836,-151.0,0.0001299,2]
[340793974,1729840240845,-151.0,0.0001299,2]
[340793975,1729840240854,-253.782746,0.0001299,2]
[340793976,1729840240863,-253.782746,0.0001299,2]
[340793977,1729840240873,-544.099539,0.0001299,2]
[340793978,1729840240882,-544.099539,0.0001299,2]
[340793979,1729840240897,-253.782746,0.0001299,2]
[340793980,1729840240905,-253.782746,0.0001299,2]
[340793981,1729840240915,-151.0,0.0001299,2]
[340793982,1729840240925,-151.0,0.0001299,2]
[340793983,1729840240934,-544.099539,0.0001299,2]
[340793984,1729840240943,-544.099539,0.0001299,2]
[340793985,1729840240952,-151.0,0.0001299,2]
[340793986,1729840240961,-151.0,0.0001299,2]
[340793987,1729840240970,-151.0,0.0001299,2]
[340793988,1729840240979,-151.0,0.0001299,2]
[340793989,1729840240989,-382.844523,0.0001299,2]
[340793990,1729840240998,-382.844523,0.0001299,2]
[340793991,1729840241008,-382.844523,0.0001299,2]
[340793992,1729840241016,-382.844523,0.0001299,2]
[340793993,1729840241025,-195.938929,0.0001299,2]
[340793994,1729840241035,-195.938929,0.0001299,2]
[340793995,1729840241044,-374.190731,0.0001299,2]
[340793996,1729840241053,-85857.2946253,0.0001299,2]
[340793997,1729840241062,-374.190731,0.0001299,2]
[340793998,1729840241071,-195.938929,0.0001299,2]
[340793999,1729840241080,-195.938929,0.0001299,2]
[340794000,1729840241089,-639.36971988,0.0001299,2]
[340794001,1729840241099,-374.190731,0.0001299,2]
[340794002,1729840241109,-374.190731,0.0001299,2]
[340794003,1729840241119,-177.663631,0.0001299,2]
[340794004,1729840241128,-158.743479,0.0001299,2]
[340794005,1729840241141,-158.743479,0.0001299,2]
[340794006,1729840241150,-158.743479,0.0001299,2]
[340794007,1729840241159,-158.743479,0.0001299,2]
[340794008,1729840241168,-151.0,0.0001299,2]
[340794009,1729840241177,-151.0,0.0001299,2]
[340794010,1729840241187,-151.0,0.0001299,2]
[340794011,1729840241197,-151.0,0.0001299,2]
[340794012,1729840241206,-151.0,0.0001299,2]
[340794013,1729840241216,-152.117206,0.0001299,2]
[340794014,1729840241225,-151.0,0.0001299,2]
[340794015,1729840241234,-151.0,0.0001299,2]
[340794016,1729840241244,-612.119661,0.0001299,2]
[340794017,1729840241254,-612.119661,0.0001299,2]
[340794018,1729840241437,-151.0,0.0001299,2]
[340794019,1729840241447,-1205.374384,0.0001299,2]
[340794020,1729840241457,-1205.374384,0.0001299,2]
[340794021,1729840241466,-612.119661,0.0001299,2]
[340794022,1729840241476,-612.119661,0.0001299,2]
[340794023,1729840241485,-151.0,0.0001299,2]
[340794024,1729840241495,-1205.374384,0.0001299,2]
[340794025,1729840241504,-1205.374384,0.0001299,2]
[340794026,1729840241514,-151.0,0.0001299,2]
[340794027,1729840241523,-2620.064115,0.0001299,2]
[340794028,1729840241532,-197.76126,0.0001299,2]
[340794029,1729840241542,-197.76126,0.0001299,2]
[340794030,1729840241551,-197.76126,0.0001299,2]
[340794031,1729840241560,-197.76126,0.0001299,2]
[340794032,1729840241570,-390.023632,0.0001299,2]
[340794033,1729840241580,-390.023632,0.0001299,2]
[340794034,1729840241589,-432.644401,0.0001299,2]
[340794035,1729840241599,-432.644401,0.0001299,2]
[340794036,1729840241608,-203.0,0.00012999,2]
[340794037,1729840241618,-252493.48648635,0.00013,2]
[340794047,1729840270884,226.18,0.00010959,2]
[340794048,1729840281412,188.49,0.00010959,2]
[340794049,1729840291943,185.37,0.00010959,2]
[340794050,1729840302451,295.94,0.00010959,2]
[340794051,1729840312956,246.62,0.00010959,2]
[340794052,1729840316856,154.022,0.0001705,60]
[340794053,1729840323479,205.51,0.00010959,2]
[340794054,1729840334188,171.26,0.00010959,2]
[340794055,1729840344708,856.34,0.00010959,2]
[340794353,1729841436089,-6757.0,0.00011963,2]
[340794354,1729841436103,-638.3298172,0.00011963,2]
[340794355,1729841436114,-161.98837367,0.000129,2]
[340794356,1729841436124,-300.0,0.00012972,2]
[340794357,1729841436134,-300.0,0.00012972,2]
[340794358,1729841436145,-503.48709119,0.00012973,2]
[340794359,1729841436156,-601.0945398,0.00012973,2]
[340794360,1729841436165,-500.81659162,0.00012973,2]
[340794361,1729841436174,-1201.20405092,0.0001298,2]
[340794362,1729841436184,-1060.55953309,0.0001299,2]
[340794363,1729841436196,-3744.25667059,0.0001299,2]
[340794364,1729841436206,-2768.00814598,0.00012999,2]
[340794370,1729841438938,-1117.32394007,0.00012999,2]
[340794371,1729841438947,-128645.85490143,0.00013,2]
[340794372,1729841438960,-485.81,0.00013,2]
[340794408,1729841440730,-336.66093985,0.00013,2]
[340794426,1729841446547,-1349.64,0.00013,2]
[340794427,1729841446561,-620.09726334,0.00013,2]
[340794445,1729841446751,-675.9,0.00013,2]
[340794484,1729841465349,811.27,0.00010959,2]